bitfinex/quotes_SOLUSD_20250714
["timestamp","ask_amount","ask_price","bid_price","bid_amount"]
[1752511553092,16.78468397,164.48,164.41,0.8]
[1752511553388,6.643,164.53,164.41,0.1]
[1752511553389,32.08180769,164.43,164.41,0.1]
[1752511553590,48.59468397,164.42,164.41,0.1]
[1752511554987,17.47468397,164.42,164.41,0.1]
[1752511555193,74.61468397,164.42,164.41,0.1]
[1752511555377,16.78468397,164.41,164.34,0.7]
[1752511555690,16.78468397,164.39,164.34,0.7]
[1752511555995,47.92468397,164.38,164.34,0.7]
[1752511556182,47.92468397,164.38,164.32,0.7]
[1752511556183,48.61468397,164.38,164.32,0.7]
[1752511556494,48.61468397,164.38,164.33,0.7]
[1752511556893,48.61468397,164.38,164.32,0.7]
[1752511557390,48.61468397,164.38,164.3,2.2729]
[1752511557585,16.78468397,164.37,164.28,0.7]
[1752511557770,16.78468397,164.35,164.28,0.7]
[1752511557977,31.83,164.34,164.28,0.7]
[1752511558395,31.14,164.33,164.28,0.7]
[1752511558595,31.14,164.32,164.28,8.28843477]
[1752511558792,0.67,164.35,164.26,13.76492639]
[1752511558793,31.14,164.31,164.29,0.65]
[1752511559294,31.14,164.31,164.29,8.23843477]
[1752511559470,31.14,164.31,164.3,6.08642726]
[1752511559670,26.67,164.36,164.3,6.73642726]
[1752511559878,31.14,164.35,164.31,0.65]
[1752511560280,26.0,164.32,164.26,6.08790941]
[1752511560501,26.0,164.28,164.26,0.65]
[1752511560683,57.14,164.28,164.26,0.65]
[1752511560888,57.14,164.28,164.24,0.65]
[1752511561088,57.81,164.28,164.24,0.65]
[1752511562104,31.18,164.28,164.25,0.65]
[1752511562275,31.18,164.28,164.26,7.58843477]
[1752511562477,6.6329,164.38,164.27,8.23843477]
[1752511562478,0.67,164.36,164.27,8.23843477]
[1752511562787,0.67,164.38,164.31,7.58843477]
[1752511562986,31.18,164.37,164.32,8.23843477]
[1752511563180,31.18,164.37,164.33,0.65]
[1752511563385,57.85,164.37,164.33,0.65]
[1752511563601,16.78468397,164.4,164.34,0.65]
[1752511563602,0.67,164.4,164.34,0.65]
[1752511563926,31.2,164.39,164.35,7.58843477]
[1752511564289,31.2,164.39,164.36,0.65]
[1752511564605,31.2,164.38,164.36,8.23843477]
[1752511564789,31.2,164.39,164.37,0.65]
[1752511566087,31.2,164.38,164.34,7.9193]
[1752511566293,31.2,164.38,164.37,0.65]
[1752511566493,31.2,164.38,164.35,0.65]
[1752511567002,31.2,164.38,164.36,0.65]
[1752511567178,31.2,164.38,164.37,0.65]
[1752511568385,31.24,164.38,164.37,8.23843477]
[1752511568587,31.24,164.4,164.37,14.32214268]
[1752511568912,31.24,164.4,164.38,0.65]
[1752511569405,31.24,164.4,164.36,0.65]
[1752511569905,31.91,164.4,164.37,0.65]
[1752511570495,31.91,164.4,164.35,7.58843477]
[1752511570802,31.24,164.4,164.36,8.23843477]
[1752511570986,31.24,164.4,164.36,7.58843477]
[1752511571187,31.24,164.4,164.37,0.65]
[1752511572407,31.24,164.4,164.38,0.65]
[1752511572599,31.24,164.4,164.39,0.65]
[1752511572802,32.08162877,164.43,164.39,0.65]
[1752511572994,31.91,164.42,164.39,0.65]
[1752511573186,31.91,164.42,164.37,6.73382397]
[1752511573518,0.67,164.41,164.37,0.65]
[1752511575089,0.67,164.41,164.35,6.08445589]
[1752511575295,31.24,164.42,164.38,0.65]
[1752511575495,31.24,164.42,164.39,0.65]
[1752511576809,16.84468397,164.45,164.41,7.58843477]
[1752511576810,0.06,164.45,164.41,7.58843477]
[1752511577008,31.24,164.44,164.42,8.23843477]
[1752511577405,31.24,164.44,164.42,7.58843477]
[1752511577585,31.24,164.44,164.43,0.65]
[1752511577788,31.24,164.44,164.43,8.23843477]
[1752511578018,0.06,164.45,164.43,8.23843477]
[1752511578194,31.3,164.45,164.44,0.65]
[1752511578389,31.3,164.45,164.43,7.58843477]
[1752511578390,31.3,164.45,164.42,14.32038835]
[1752511578598,31.3,164.45,164.43,0.65]
[1752511578812,0.06,164.45,164.43,8.23843477]
[1752511578999,31.28,164.45,164.43,7.58843477]
[1752511579196,31.28,164.45,164.44,0.65]
[1752511579393,31.28,164.45,164.43,7.58843477]
[1752511579600,31.28,164.45,164.43,8.23843477]
[1752511580497,31.28,164.45,164.44,0.65]
[1752511580696,0.06,164.45,164.44,8.23843477]
[1752511582620,0.06,164.45,164.44,14.3196802]
[1752511584412,0.06,164.45,164.44,31.10436417]
[1752511585235,1e-08,164.45,164.44,31.10436417]
[1752511585434,31.22,164.53,164.45,16.78468397]
[1752511585613,31.22,164.53,164.5,7.58843477]
[1752511585934,31.89,164.53,164.5,8.23843477]
[1752511586317,31.89,164.53,164.49,7.58843477]
[1752511586514,31.89,164.53,164.49,8.23843477]
[1752511586717,0.67,164.52,164.49,7.58843477]
[1752511587027,31.22,164.53,164.5,8.23843477]
[1752511587229,31.22,164.53,164.51,7.58843477]
[1752511587428,0.2,164.55,164.52,7.58843477]
[1752511587625,0.2,164.55,164.52,8.23843477]
[1752511587933,0.2,164.55,164.53,0.65]
[1752511588123,0.2,164.55,164.52,8.23843477]
[1752511589137,0.2,164.55,164.53,6.07791892]
[1752511589335,0.2,164.55,164.53,13.66635369]
[1752511589637,0.2,164.55,164.53,14.36635369]
[1752511589935,0.2,164.55,164.54,0.7]
[1752511590128,0.2,164.55,164.54,8.28843477]
[1752511591335,0.2,164.55,164.54,14.3659843]
[1752511591814,0.2,164.55,164.54,58.77226827]
[1752511592013,0.2,164.55,164.54,65.31936827]
[1752511592619,1e-08,164.55,164.54,96.49936827]
[1752511593919,0.06,164.57,164.55,16.78468397]
[1752511594218,0.06,164.57,164.56,8.19611585]
[1752511594415,0.06,164.57,164.56,8.89611585]
[1752511594946,0.06,164.63,164.57,16.78468397]
[1752511595150,0.06,164.63,164.62,7.58843477]
[1752511595720,0.06,164.63,164.62,8.28843477]
[1752511596921,0.06,164.63,164.62,6.77459603]
[1752511597117,0.06,164.63,164.62,14.3630308]
[1752511597318,0.06,164.63,164.62,13.6630308]
[1752511597519,0.06,164.63,164.62,7.58843477]
[1752511597747,0.74,164.63,164.58,0.7]
[1752511597914,0.68,164.62,164.6,7.58843477]
[1752511598118,0.06,164.63,164.6,7.58843477]
[1752511598333,0.74,164.63,164.6,13.66373715]
[1752511598814,0.06,164.63,164.61,7.58843477]
[1752511599434,0.06,164.63,164.6,6.77530238]
[1752511599643,0.06,164.63,164.6,14.36373715]
[1752511599932,0.06,164.63,164.62,13.6630308]
[1752511600520,0.06,164.63,164.62,14.3630308]
[1752511605926,0.06,164.63,164.62,14.9704904]
[1752511606244,0.06,164.63,164.62,31.75517437]
[1752511606443,0.06,164.63,164.62,14.3630308]
[1752511607735,0.06,164.63,164.62,31.75517437]
[1752511608558,0.06,164.63,164.62,7.38205563]
[1752511608850,0.06,164.63,164.62,14.3630308]
[1752511609235,0.06,164.63,164.62,45.5230308]
[1752511614753,1e-08,164.63,164.62,62.91517437]
[1752511615266,0.06,164.65,164.62,62.91517437]
[1752511615267,1e-08,164.65,164.64,50.37311874]
[1752511615430,1e-08,164.65,164.64,88.17436266]
[1752511615631,1e-08,164.67,164.65,16.78468397]
[1752511615838,1e-08,164.67,164.66,56.10043077]
[1752511616175,1e-08,164.67,164.66,56.80043077]
[1752511616841,1e-08,164.67,164.66,8.28843477]
[1752511617029,1e-08,164.67,164.66,39.40843477]
[1752511617942,1e-08,164.67,164.66,45.48155513]
[1752511618144,1e-08,164.67,164.66,62.2662391]
[1752511620264,1e-08,164.67,164.66,14.36155513]
[1752511620455,1e-08,164.67,164.66,45.46155513]
[1752511620637,1e-08,164.67,164.66,62.85355113]
[1752511620841,0.2,164.7,164.69,26.0]
[1752511621037,0.2,164.7,164.69,39.16804589]
[1752511621260,0.2,164.7,164.69,34.88563617]
[1752511621949,0.2,164.7,164.69,40.95765025]
[1752511622149,0.2,164.7,164.69,40.35044885]
[1752511622560,0.2,164.7,164.67,26.69]
[1752511622772,0.92,164.7,164.68,6.07227752]
[1752511622969,0.92,164.7,164.68,13.66071229]
[1752511623862,0.92,164.7,164.68,6.07227752]
[1752511624053,0.72,164.69,164.68,6.07227752]
[1752511624447,0.72,164.69,164.67,6.07264939]
[1752511624656,0.72,164.68,164.67,6.07264939]
[1752511624855,0.72,164.68,164.64,6.07385811]
[1752511625162,0.2,164.7,164.65,8.27843477]
[1752511625344,0.72,164.69,164.65,8.27843477]
[1752511625846,0.72,164.68,164.65,8.27843477]
[1752511626055,0.72,164.68,164.66,6.07312036]
[1752511626648,0.72,164.67,164.65,6.07344828]
[1752511627370,0.72,164.66,164.65,6.07344828]
[1752511628066,0.72,164.66,164.61,13.66339983]
[1752511628276,26.2,164.7,164.63,7.58843477]
[1752511628455,0.72,164.67,164.63,7.58843477]
[1752511628661,0.72,164.67,164.63,8.27843477]
[1752511628862,0.72,164.67,164.64,7.58843477]
[1752511629250,0.72,164.69,164.65,7.58843477]
[1752511629475,0.72,164.69,164.66,8.27843477]
[1752511629674,0.2,164.7,164.67,7.58843477]
[1752511629859,0.2,164.7,164.68,7.58843477]
[1752511630172,0.2,164.7,164.69,6.07201408]
[1752511630477,0.2,164.7,164.69,13.66044885]
[1752511631277,0.2,164.7,164.69,14.35044885]
[1752511634561,1e-08,164.7,164.69,31.13513282]
[1752511635858,1e-08,164.72,164.71,42.78468397]
[1752511636062,1e-08,164.72,164.71,82.08024641]
[1752511636257,1e-08,164.72,164.71,82.77024641]
[1752511637078,1e-08,164.72,164.71,88.84152319]
[1752511637579,1e-08,164.72,164.71,33.36840445]
[1752511637767,1e-08,164.72,164.71,40.95683922]
[1752511638374,1e-08,164.72,164.71,57.74152319]
[1752511640313,1e-08,164.74,164.72,18.40478397]
[1752511640591,1e-08,164.74,164.73,39.29548873]
[1752511640794,1e-08,164.74,164.73,39.98548873]
[1752511641160,1e-08,164.74,164.73,46.0560284]
[1752511641676,1e-08,164.74,164.73,62.84071237]
[1752511641879,1e-08,164.77,164.76,50.37311874]
[1752511642183,1e-08,164.77,164.76,86.27383323]
[1752511642494,1e-08,164.77,164.76,87.57077666]
[1752511644191,1e-08,164.77,164.76,93.64021098]
[1752511645372,1e-08,164.77,164.76,88.83949649]
[1752511646088,1e-08,164.77,164.76,57.73949649]
[1752511646307,1e-08,164.77,164.76,88.81949649]
[1752511646871,1e-08,164.77,164.76,50.15106172]
[1752511647067,1e-08,164.77,164.76,88.21255306]
[1752511652596,0.2,164.82,164.79,42.78468397]
[1752511652779,0.68,164.86,164.84,7.58843477]
[1752511653098,0.68,164.85,164.83,7.58843477]
[1752511653296,0.2,164.87,164.84,7.58843477]
[1752511653507,0.68,164.86,164.84,7.58843477]
[1752511653799,0.68,164.86,164.85,6.06612071]
[1752511654028,0.2,164.87,164.85,6.06612071]
[1752511654569,0.68,164.86,164.85,6.06612071]
[1752511654784,0.68,164.86,164.84,6.06639327]
[1752511655178,0.68,164.85,164.84,13.65482804]
[1752511655382,0.88,164.87,164.84,13.65482804]
[1752511655587,0.68,164.86,164.84,13.65482804]
[1752511656089,0.2,164.87,164.84,13.65482804]
[1752511656283,0.88,164.87,164.84,13.65482804]
[1752511656702,0.68,164.86,164.84,6.06639327]
[1752511657003,0.68,164.85,164.84,6.06639327]
[1752511657371,0.68,164.85,164.8,0.60679611]
[1752511657575,0.68,164.85,164.78,6.06869765]
[1752511657803,0.68,164.85,164.79,7.58843477]
[1752511658008,0.68,164.85,164.8,6.06796116]
[1752511658475,7.8756,164.84,164.78,6.06869765]
[1752511658788,0.68,164.83,164.78,6.06869765]
[1752511659780,0.68,164.83,164.76,6.06943432]
[1752511659995,6.74709436,164.83,164.75,21.24376054]
[1752511660291,0.68,164.82,164.75,28.83219531]
[1752511660683,0.68,164.82,164.75,21.24376054]
[1752511660874,0.68,164.82,164.75,6.06980273]
[1752511662395,6.74726393,164.82,164.74,6.07017117]
[1752511662596,0.68,164.81,164.74,6.07017117]
[1752511663395,6.06726393,164.82,164.73,21.24688884]
[1752511664784,6.06685676,164.83,164.73,21.24688884]
[1752511665499,0.43,164.82,164.73,21.24688884]
[1752511666278,6.49741092,164.82,164.73,21.95688884]
[1752511666492,6.06741092,164.82,164.73,21.95688884]
[1752511666693,0.43,164.81,164.73,21.95688884]
[1752511667004,0.43,164.81,164.74,0.71]
[1752511667400,0.43,164.81,164.75,6.06980273]
[1752511669984,6.49767179,164.81,164.75,6.06980273]
[1752511670206,0.43,164.8,164.73,6.07053967]
[1752511670391,1.6209,164.79,164.73,6.07053967]
[1752511670703,0.43,164.78,164.73,6.07053967]
[1752511671205,6.0638,164.77,164.73,6.07053967]
[1752511671390,0.43,164.76,164.73,6.07053967]
[1752511671709,0.43,164.76,164.71,0.71]
[1752511671904,6.0638,164.77,164.72,0.71]
[1752511672401,6.4938,164.77,164.73,0.71]
[1752511673009,0.43,164.76,164.71,0.71]
[1752511673991,0.43,164.76,164.7,28.83836895]
[1752511674191,0.43,164.76,164.71,0.71]
[1752511674409,0.43,164.76,164.72,0.71]
[1752511674794,0.43,164.75,164.7,21.95993418]
[1752511674999,6.4938,164.77,164.71,0.71]
[1752511675496,6.4938,164.77,164.71,8.29843477]
[1752511675703,6.4938,164.77,164.71,7.58843477]
[1752511675897,6.4938,164.77,164.72,0.71]
[1752511676094,6.4938,164.77,164.73,0.71]
[1752511676496,1.6209,164.79,164.74,8.29843477]
[1752511676700,1.6209,164.79,164.75,8.29843477]
[1752511676899,1.6209,164.79,164.76,6.06943432]
[1752511677092,1.6209,164.79,164.76,6.77943432]
[1752511679602,0.43,164.8,164.76,6.77943432]
[1752511679603,0.71,164.82,164.77,8.28843477]
[1752511679802,0.71,164.82,164.78,0.7]
[1752511680495,58.7324,164.84,164.78,0.7]
[1752511680496,33.4424,164.84,164.79,0.7]
[1752511680696,6.5329,164.85,164.81,7.58843477]
[1752511680898,6.5329,164.85,164.82,0.7]
[1752511681206,0.71,164.86,164.83,6.06685676]
[1752511681912,0.71,164.85,164.8,8.28843477]
[1752511682116,0.2,164.87,164.82,7.58843477]
[1752511682117,0.91,164.87,164.82,7.58843477]
[1752511682314,0.2,164.87,164.83,8.28843477]
[1752511682513,0.2,164.87,164.83,7.58843477]
[1752511682715,0.2,164.87,164.84,0.7]
[1752511683028,0.2,164.87,164.85,6.06612071]
[1752511683520,0.71,164.86,164.84,6.06639598]
[1752511684051,0.71,164.85,164.82,6.06722485]
[1752511684324,0.71,164.84,164.82,6.06722485]
[1752511684524,0.71,164.83,164.8,6.06796116]
[1752511684825,0.71,164.82,164.77,0.7]
[1752511685021,0.71,164.81,164.78,6.06869765]
[1752511685228,0.71,164.8,164.78,6.06869765]
[1752511685527,0.71,164.83,164.78,6.76869765]
[1752511686023,0.71,164.82,164.78,6.76869765]
[1752511687100,57.79,164.84,164.78,6.06869765]
[1752511687407,57.79,164.84,164.79,0.7]
[1752511687708,0.71,164.83,164.79,0.7]
[1752511688625,0.71,164.82,164.78,6.06869765]
[1752511689042,0.71,164.81,164.78,6.06869765]
[1752511689324,0.71,164.81,164.76,6.06943432]
[1752511689532,0.71,164.81,164.77,0.7]
[1752511689702,32.06660992,164.84,164.76,6.06943432]
[1752511689904,0.71,164.81,164.76,6.06943432]
[1752511690120,0.71,164.81,164.76,6.76943432]
[1752511690424,0.71,164.8,164.76,6.76943432]
[1752511690809,0.71,164.82,164.77,0.7]
[1752511691129,26.0,164.84,164.77,0.7]
[1752511691130,0.71,164.81,164.77,6.06879768]
[1752511691635,0.71,164.81,164.77,6.76879768]
[1752511691805,0.71,164.83,164.78,0.7]
[1752511692004,0.71,164.82,164.78,0.7]
[1752511692708,26.71,164.84,164.79,0.7]
[1752511692912,26.71,164.84,164.77,13.65723245]
[1752511693116,26.71,164.84,164.8,0.7]
[1752511693329,0.71,164.84,164.81,6.06759298]
[1752511694902,31.77,164.85,164.79,6.76832938]
[1752511696332,0.71,164.84,164.79,6.76832938]
[1752511696536,0.71,164.83,164.79,6.76832938]
[1752511696717,31.77,164.85,164.79,6.76832938]
[1752511696916,0.71,164.84,164.79,6.76832938]
[1752511697614,0.71,164.83,164.79,6.76832938]
[1752511698531,37.83621023,164.85,164.79,6.76832938]
[1752511698722,0.71,164.84,164.79,6.76832938]
[1752511699122,0.71,164.83,164.79,6.76832938]
[1752511699813,0.71,164.82,164.76,6.76943432]
[1752511700723,0.71,164.82,164.77,0.7]
[1752511701113,31.77,164.81,164.77,6.76897738]
[1752511701334,0.71,164.8,164.75,6.76980273]
[1752511701648,0.71,164.8,164.76,0.7]
[1752511702732,31.06,164.81,164.77,0.7]
[1752511703034,31.77,164.81,164.77,0.7]
[1752511703231,31.77,164.81,164.77,6.76892422]
[1752511703928,31.77,164.81,164.74,22.76302993]
[1752511703929,0.71,164.8,164.74,0.7]
[1752511704335,0.71,164.8,164.74,8.28843477]
[1752511704635,0.71,164.8,164.75,0.7]
[1752511704840,31.06,164.81,164.75,8.28843477]
[1752511705020,31.06,164.81,164.76,0.7]
[1752511705325,31.06,164.81,164.77,6.06906597]
[1752511705528,31.77,164.81,164.77,6.76906597]
[1752511705929,0.71,164.8,164.75,0.7]
[1752511706127,0.71,164.79,164.75,0.7]
[1752511706316,31.77,164.79,164.75,0.7]
[1752511706523,0.71,164.78,164.73,6.07053967]
[1752511706826,0.71,164.77,164.73,6.07053967]
[1752511707233,0.71,164.76,164.72,0.7]
[1752511707430,0.71,164.76,164.72,6.77084651]
[1752511708429,0.68,164.76,164.71,0.03]
[1752511708741,0.68,164.76,164.71,0.7]
[1752511709320,31.06,164.79,164.71,0.7]
[1752511709526,0.68,164.75,164.71,0.03]
[1752511710035,0.68,164.75,164.71,0.7]
[1752511710421,31.74,164.75,164.71,6.7709346]
[1752511710624,31.06,164.75,164.71,6.1009346]
[1752511710817,31.06,164.75,164.72,0.67]
[1752511711017,0.68,164.8,164.73,8.25843477]
[1752511711221,31.08,164.8,164.74,8.25843477]
[1752511711425,31.08,164.8,164.75,0.67]
[1752511712124,1.5379,164.82,164.76,7.58843477]
[1752511712329,1.5379,164.82,164.77,0.67]
[1752511712330,31.08,164.82,164.77,0.67]
[1752511712527,31.08,164.82,164.78,6.06869765]
[1752511712754,31.08,164.82,164.79,0.67]
[1752511713254,31.08,164.82,164.78,6.06869765]
[1752511713424,31.08,164.82,164.78,6.73869765]
[1752511713850,31.76,164.82,164.78,6.73869765]
[1752511714750,0.68,164.81,164.74,26.0]
[1752511714954,0.68,164.81,164.75,6.06980273]
[1752511715542,0.68,164.81,164.75,6.73980273]
[1752511717834,31.08,164.82,164.76,0.67]
[1752511718351,31.06,164.83,164.78,7.58843477]
[1752511718550,0.06,164.82,164.78,6.06869765]
[1752511718752,0.06,164.82,164.79,0.67]
[1752511719058,0.06,164.82,164.79,8.25843477]
[1752511719254,0.06,164.82,164.8,0.67]
[1752511720864,0.06,164.82,164.8,6.73793706]
[1752511722755,0.06,164.82,164.81,0.67]
[1752511722960,0.06,164.82,164.81,6.73759298]
[1752511723151,0.06,164.82,164.8,6.06781303]
[1752511723552,0.06,164.82,164.8,6.73781303]
[1752511723859,0.06,164.82,164.81,0.67]
[1752511724736,0.06,164.82,164.8,6.06781303]
[1752511724948,0.06,164.82,164.8,6.73781303]
[1752511725329,0.06,164.82,164.79,6.73819923]
[1752511726269,0.06,164.82,164.8,0.67]
[1752511726765,0.06,164.82,164.81,0.67]
[1752511727273,0.06,164.82,164.79,6.06819923]
[1752511727458,0.06,164.82,164.8,0.67]
[1752511728258,0.06,164.82,164.78,6.73859653]
[1752511728470,0.06,164.82,164.8,0.67]
[1752511728784,0.06,164.82,164.81,7.58843477]
[1752511729141,0.06,164.82,164.81,8.86519406]
[1752511729342,0.06,164.82,164.81,14.93278704]
[1752511729766,0.06,164.82,164.81,7.34435227]
[1752511729941,0.06,164.82,164.81,14.93278704]
[1752511730661,0.2,164.87,164.81,30.1017695]
[1752511730957,0.2,164.87,164.84,7.58843477]
[1752511731369,0.2,164.87,164.85,6.73612071]
[1752511731679,0.2,164.87,164.86,7.58843477]
[1752511731852,0.2,164.87,164.86,8.25843477]
[1752511733566,0.2,164.87,164.86,14.32418752]
[1752511734848,0.2,164.87,164.86,18.78237324]
[1752511736263,0.2,164.87,164.86,14.32418752]
[1752511736474,0.2,164.87,164.86,18.78059575]
[1752511737347,0.2,164.87,164.86,18.77966626]
[1752511738056,0.2,164.87,164.86,11.19123149]
[1752511741472,0.2,164.87,164.86,4.45547874]
[1752511741684,0.86,164.87,164.86,4.45547874]
[1752511742060,0.2,164.87,164.84,6.06620927]
[1752511742379,0.86,164.87,164.83,6.77671878]
[1752511742672,0.2,164.87,164.83,6.77671878]
[1752511743060,0.2,164.87,164.84,0.71]
[1752511743373,0.2,164.87,164.85,0.71]
[1752511743976,0.2,164.87,164.86,0.71]
[1752511744155,0.2,164.87,164.86,8.29843477]
[1752511744768,0.2,164.87,164.86,6.77575275]
[1752511746363,0.2,164.87,164.86,6.06575275]
[1752511746558,0.2,164.87,164.85,6.06599787]
[1752511746767,0.2,164.87,164.84,6.77639962]
[1752511747253,0.86,164.87,164.83,6.06673562]
[1752511747453,0.2,164.87,164.83,6.77673562]
[1752511747674,0.2,164.87,164.84,0.71]
[1752511747858,6.68478437,164.89,164.84,0.71]
[1752511748064,0.66,164.88,164.84,0.71]
[1752511748274,0.66,164.88,164.84,6.77630047]
[1752511748662,8.37062419,164.9,164.85,0.71]
[1752511749159,0.66,164.89,164.83,6.06675691]
[1752511749360,0.66,164.89,164.84,0.71]
[1752511749570,0.66,164.89,164.85,0.71]
[1752511750172,0.06,164.9,164.86,0.71]
[1752511750372,0.06,164.9,164.87,0.71]
[1752511751283,0.06,164.9,164.88,0.71]
[1752511752092,0.06,164.9,164.86,6.77561431]
[1752511752262,0.06,164.9,164.86,6.06561431]
[1752511752456,0.06,164.9,164.87,0.71]
[1752511753165,0.72,164.9,164.86,6.06561431]
[1752511753560,0.72,164.9,164.86,6.77561431]
[1752511755480,6.78431246,164.9,164.86,0.71]
[1752511756868,0.66,164.89,164.85,6.06601621]
[1752511757185,0.66,164.89,164.85,6.77601621]
[1752511757980,0.06,164.9,164.85,6.06601621]
[1752511758281,0.72,164.9,164.86,0.71]
[1752511758666,0.06,164.9,164.87,0.71]
[1752511759478,0.06,164.9,164.85,13.65445098]
[1752511759768,0.06,164.9,164.86,6.77572732]
[1752511760191,0.06,164.9,164.87,0.71]
[1752511762091,0.72,164.9,164.85,6.7760297]
[1752511762285,0.72,164.9,164.86,0.71]
[1752511762595,0.06,164.9,164.87,0.71]
[1752511763188,0.72,164.9,164.87,0.71]
[1752511763390,0.72,164.9,164.85,6.0660297]
[1752511763594,0.72,164.9,164.86,0.71]
[1752511765700,6.78431454,164.9,164.86,0.71]
[1752511767199,0.06,164.9,164.87,0.71]
[1752511767786,0.06,164.9,164.88,0.71]
[1752511770704,0.06,164.9,164.88,6.77485582]
[1752511770908,0.06,164.9,164.89,8.26843477]
[1752511771203,0.06,164.9,164.89,8.87489968]
[1752511771903,0.06,164.9,164.89,14.93954884]
[1752511772606,0.06,164.9,164.89,31.72423281]
[1752511773515,0.06,164.9,164.89,57.72423281]
[1752511773902,0.06,164.9,164.89,26.68]
[1752511774190,0.06,164.9,164.89,40.33308393]
[1752511774777,0.06,164.9,164.87,0.68]
[1752511775019,0.06,164.9,164.88,0.68]
[1752511775182,0.06,164.9,164.87,0.68]
[1752511776378,0.75,164.9,164.85,0.68]
[1752511777402,0.75,164.9,164.85,6.74586463]
[1752511777609,0.75,164.9,164.85,6.06586463]
[1752511777800,0.75,164.9,164.86,0.68]
[1752511778500,0.06,164.9,164.87,0.68]
[1752511779908,0.75,164.9,164.85,6.74601081]
[1752511780105,0.75,164.9,164.86,0.68]
[1752511781106,6.81430624,164.9,164.86,0.68]
[1752511783204,0.06,164.9,164.86,6.0657402]
[1752511783380,0.06,164.9,164.87,0.68]
[1752511783997,6.81432575,164.9,164.86,0.68]
[1752511784203,0.75,164.9,164.87,0.68]
[1752511784393,6.81442921,164.9,164.85,0.68]
[1752511784706,6.12442921,164.9,164.84,6.06648871]
[1752511784908,0.69,164.89,164.85,0.68]
[1752511785080,0.69,164.88,164.83,0.68]
[1752511785281,6.81442921,164.9,164.84,0.68]
[1752511786294,6.81442921,164.9,164.86,0.03]
[1752511786498,6.12442921,164.9,164.86,0.03]
[1752511786700,6.81442921,164.9,164.86,0.03]
[1752511787094,0.06,164.9,164.87,0.68]
[1752511787410,0.06,164.9,164.88,0.68]
[1752511787610,0.06,164.9,164.87,0.68]
[1752511788090,0.06,164.9,164.88,0.68]
[1752511790798,0.06,164.9,164.89,0.68]
[1752511791213,0.06,164.9,164.88,0.68]
[1752511791711,0.06,164.9,164.89,0.68]
[1752511792311,0.06,164.9,164.89,8.26843477]
[1752511792709,0.06,164.9,164.89,13.65308393]
[1752511793013,0.06,164.9,164.89,14.33308393]
[1752511794692,0.06,164.9,164.89,0.68]
[1752511795500,0.06,164.9,164.89,6.74464916]
[1752511796925,0.06,164.9,164.89,14.93954884]
[1752511798817,0.06,164.9,164.89,6.74464916]
[1752511799320,0.06,164.9,164.89,14.33308393]
[1752511799494,0.06,164.9,164.89,18.78539531]
[1752511800608,0.06,164.9,164.89,14.33308393]
[1752511800917,0.06,164.9,164.89,6.74464916]
[1752511801816,0.06,164.9,164.89,0.68]
[1752511802021,0.06,164.9,164.87,0.68]
[1752511802315,0.06,164.9,164.87,6.06531091]
[1752511802524,0.06,164.9,164.88,0.68]